bitfinex/quotes_ETHUSD_20250708
["timestamp","ask_amount","ask_price","bid_price","bid_amount"]
[1751957903422,2.13003577,2561.3,2561.2,9.8384198]
[1751957903624,2.13003577,2561.3,2561.2,5.934]
[1751957904253,2.13003577,2561.3,2561.2,9.8384198]
[1751957905054,2.13003577,2561.3,2561.2,5.934]
[1751957905256,2.13026473,2561.3,2561.2,5.934]
[1751957911271,2.13026473,2561.3,2561.2,9.8384198]
[1751957914068,2.13026473,2561.3,2561.2,5.934]
[1751957914463,2.13026473,2561.3,2561.2,9.8384198]
[1751957914955,2.13026473,2561.3,2561.2,11.67979205]
[1751957915154,0.72760939,2561.3,2561.2,11.67979205]
[1751957915568,2.13026473,2561.3,2561.2,11.67979205]
[1751957915769,0.72760939,2561.3,2561.2,11.67979205]
[1751957916146,2.13026473,2561.3,2561.2,11.67979205]
[1751957916348,0.72760939,2561.3,2561.2,11.67979205]
[1751957916671,0.3662135,2561.3,2561.2,11.67979205]
[1751957916871,0.73140194,2561.3,2561.2,11.67979205]
[1751957917277,2.13405728,2561.3,2561.2,11.67979205]
[1751957917462,0.73140194,2561.3,2561.2,11.67979205]
[1751957917663,0.73140194,2561.3,2561.2,10.92949205]
[1751957917863,2.13405728,2561.3,2561.2,10.0336198]
[1751957918075,0.73140194,2561.3,2561.2,10.0336198]
[1751957918471,2.13405728,2561.3,2561.2,10.0336198]
[1751957918680,2.13405728,2561.3,2561.2,6.1292]
[1751957919357,2.13405728,2561.3,2561.2,10.0336198]
[1751957920290,0.73140194,2561.3,2561.2,10.0336198]
[1751957920471,2.13405728,2561.3,2561.2,11.50507592]
[1751957920672,0.73140194,2561.3,2561.2,11.30987592]
[1751957921561,2.13405728,2561.3,2561.2,11.30987592]
[1751957921759,0.73140194,2561.3,2561.2,11.30987592]
[1751957922285,2.13405728,2561.3,2561.2,11.30987592]
[1751957922484,0.73140194,2561.3,2561.2,11.30987592]
[1751957922885,2.13405728,2561.3,2561.2,11.30987592]
[1751957923194,0.73140194,2561.3,2561.2,11.30987592]
[1751957925484,0.002,2561.4,2561.3,3.90426736]
[1751957925694,0.73208282,2561.4,2561.3,3.90426736]
[1751957925883,2.13835581,2561.4,2561.3,3.90426736]
[1751957926091,0.73208282,2561.4,2561.3,3.90426736]
[1751957926298,0.73208282,2561.4,2561.2,9.83833524]
[1751957926508,0.73008282,2561.3,2561.2,9.83833524]
[1751957926803,2.13635581,2561.3,2561.2,9.83833524]
[1751957927011,0.73008282,2561.3,2561.2,9.83833524]
[1751957927506,2.13635581,2561.3,2561.2,9.83833524]
[1751957927689,0.73008282,2561.3,2561.2,9.83833524]
[1751957928305,2.13635581,2561.3,2561.2,9.83833524]
[1751957928495,0.73008282,2561.3,2561.2,9.83833524]
[1751957928893,2.13635581,2561.3,2561.2,9.83833524]
[1751957929089,0.73008282,2561.3,2561.2,9.83833524]
[1751957929497,2.13635581,2561.3,2561.2,9.83833524]
[1751957930006,0.73008282,2561.3,2561.2,9.83833524]
[1751957930702,0.73008282,2561.3,2561.2,10.03353524]
[1751957934822,11.95038722,2561.7,2561.2,10.03353524]
[1751957934823,0.002,2561.7,2561.6,5.24571011]
[1751957935023,0.002,2562.1,2562.0,4.69510062]
[1751957935189,4.002,2562.1,2562.0,10.86153262]
[1751957935517,4.002,2562.1,2562.0,11.37250062]
[1751957935923,0.002,2562.1,2562.0,11.37250062]
[1751957936086,0.002,2562.1,2562.0,13.87654105]
[1751957937614,1e-08,2562.1,2562.0,13.87654105]
[1751957941533,1e-08,2562.1,2562.0,14.17395418]
[1751957948440,1e-08,2562.1,2562.0,8.24095418]
[1751957948623,1e-08,2562.1,2562.0,15.61695418]
[1751957954359,1e-08,2562.1,2562.0,8.24095418]
[1751957954523,1e-08,2562.1,2562.0,15.61595418]
[1751957956851,1e-08,2562.1,2562.0,8.24095418]
[1751957957072,1e-08,2562.1,2562.0,4.09760062]
[1751957957270,1e-08,2562.1,2562.0,10.02660062]
[1751957959624,1e-08,2562.1,2562.0,4.09760062]
[1751957959955,1e-08,2562.1,2562.0,10.02660062]
[1751957961651,1e-08,2562.1,2562.0,10.02760062]
[1751957975975,1e-08,2562.1,2562.0,12.27033024]
[1751957991718,1e-08,2562.1,2562.0,10.02560062]
[1751958000452,1e-08,2562.1,2562.0,6.1224]
[1751958000453,0.36580125,2562.1,2562.0,6.1224]
[1751958000600,0.36580125,2562.1,2562.0,5.928]
[1751958001104,1e-08,2562.1,2562.0,10.06463262]
[1751958001316,1e-08,2562.1,2562.0,12.08449202]
[1751958001529,1e-08,2562.1,2562.0,10.02560062]
[1751958002542,1e-08,2562.1,2562.0,16.43664598]
[1751958002715,1e-08,2562.1,2562.0,17.22094598]
[1751958004133,1e-08,2562.1,2562.0,11.35990062]
[1751958004533,1e-08,2562.1,2562.0,4.09860062]
[1751958004830,1e-08,2562.1,2562.0,11.46898667]
[1751958006500,1e-08,2562.1,2562.0,11.46998667]
[1751958016221,1e-08,2562.1,2562.0,14.93642348]
[1751958024251,1e-08,2562.1,2562.0,7.56442348]
[1751958024451,1e-08,2562.1,2562.0,14.14042348]
[1751958029044,1e-08,2562.1,2562.0,20.00146884]
[1751958029665,1e-08,2562.1,2562.0,20.79376884]
[1751958030859,1e-08,2562.1,2562.0,7.56372348]
[1751958031070,1e-08,2562.1,2562.0,12.80928667]
[1751958031949,1e-08,2562.1,2562.0,5.44028667]
[1751958032290,1e-08,2562.1,2562.0,10.02298667]
[1751958037689,1e-08,2562.1,2562.0,4.09798667]
[1751958037888,1e-08,2562.1,2562.0,10.06201867]
[1751958038087,1e-08,2562.1,2562.0,10.02298667]
[1751958038291,1e-08,2562.1,2562.0,4.09798667]
[1751958039005,0.81800001,2562.1,2562.0,0.1954]
[1751958039207,1.53040468,2562.1,2562.0,0.001]
[1751958039362,2.29345895,2562.1,2562.0,0.001]
[1751958039566,3.69807471,2562.1,2562.0,0.001]
[1751958042186,2.29345895,2562.1,2562.0,0.001]
[1751958043876,2.48785895,2562.1,2562.0,0.001]
[1751958044081,1.72480468,2562.1,2562.0,0.001]
[1751958044420,1.53040468,2562.1,2562.0,0.001]
[1751958044797,1.53040468,2562.1,2562.0,3.90420062]
[1751958045504,1.53040468,2562.1,2562.0,0.001]
[1751958046082,1.53004308,2562.1,2562.0,0.001]
[1751958046489,1.53004308,2562.1,2562.0,3.90420062]
[1751958046727,1.18314535,2562.1,2562.0,3.90420062]
[1751958047729,1.18314535,2562.1,2562.0,0.001]
[1751958048989,1.18301271,2562.1,2562.0,0.001]
[1751958050744,1.18301271,2562.1,2562.0,3.90420062]
[1751958050904,0.36501271,2562.1,2562.0,5.13542639]
[1751958051101,1e-08,2562.1,2562.0,5.13542639]
[1751958052368,1e-08,2562.1,2562.0,5.09639439]
[1751958055104,0.77470001,2562.1,2562.0,0.001]
[1751958055302,1.13986137,2562.1,2562.0,0.001]
[1751958055502,1.13986137,2562.1,2562.0,5.926]
[1751958055659,1.13986137,2562.1,2562.0,0.001]
[1751958056359,1.49022871,2562.1,2562.0,0.001]
[1751958056599,2.63954984,2562.1,2562.0,0.001]
[1751958056958,1.49022871,2562.1,2562.0,0.001]
[1751958057609,1.13986137,2562.1,2562.0,0.001]
[1751958057762,1.48774115,2562.1,2562.0,0.001]
[1751958059508,2.89046019,2562.1,2562.0,0.001]
[1751958059694,1.48774115,2562.1,2562.0,0.001]
[1751958059877,2.19097279,2562.1,2562.0,0.001]
[1751958060618,3.59400984,2562.1,2562.0,0.001]
[1751958066230,3.59417258,2562.1,2562.0,0.001]
[1751958068417,3.78869632,2562.1,2562.0,0.001]
[1751958071330,3.79555099,2562.1,2562.0,0.001]
[1751958072039,3.02085099,2562.1,2562.0,0.001]
[1751958072226,1.61813214,2562.1,2562.0,0.001]
[1751958074435,1.61811238,2562.1,2562.0,0.001]
[1751958075529,1.61778275,2562.1,2562.0,0.001]
[1751958076145,3.0205016,2562.1,2562.0,0.001]
[1751958077256,2.66595814,2562.1,2562.0,0.001]
[1751958077457,3.02149511,2562.1,2562.0,0.001]
[1751958079655,3.02147577,2562.1,2562.0,0.001]
[1751958080260,3.79407649,2562.1,2562.0,0.001]
[1751958080589,7.69712477,2562.1,2562.0,0.001]
[1751958082185,9.45177947,2562.1,2562.0,0.001]
[1751958082374,19.45177947,2562.1,2562.0,0.001]
[1751958082757,17.69712477,2562.1,2562.0,0.001]
[1751958083084,20.03666437,2562.1,2562.0,0.001]
[1751958083987,19.45307555,2562.1,2562.0,0.001]
[1751958084301,20.03666437,2562.1,2562.0,0.001]
[1751958084858,16.13361609,2562.1,2562.0,0.001]
[1751958087090,19.71807649,2562.1,2562.0,0.001]
[1751958089805,21.86321609,2562.1,2561.0,4.7072271]
[1751958089967,2.57118349,2561.7,2561.1,3.90456304]
[1751958090166,2.12384484,2561.6,2561.1,3.90456304]
[1751958090369,0.72012108,2561.5,2561.1,3.90456304]
[1751958090592,0.72012108,2561.4,2561.1,3.90454883]
[1751958090780,1.40372376,2561.6,2561.1,3.90454883]
[1751958090781,0.72012108,2561.3,2561.1,3.90454883]
[1751958091083,0.36558902,2561.2,2561.0,4.70725958]
[1751958091279,1.40372376,2561.6,2561.0,4.70725958]
[1751958091488,1.42569509,2561.5,2561.0,4.70725958]
[1751958091688,0.72246345,2561.4,2561.0,4.70725958]
[1751958091869,0.72246345,2561.3,2561.0,4.70725958]
[1751958092193,0.3658381,2561.2,2561.0,4.70725958]
[1751958092380,0.70323164,2561.5,2561.0,4.70725958]
[1751958092581,0.72233473,2561.4,2561.1,3.90456708]
[1751958092793,0.72233473,2561.3,2561.1,3.90456708]
[1751958092991,0.36577298,2561.2,2561.1,5.35826869]
[1751958093173,7.32772376,2561.7,2561.4,4.67141493]
[1751958093373,2.12594834,2561.6,2561.4,4.67141493]
[1751958093597,0.72222458,2561.5,2561.4,4.67141493]
[1751958102708,0.72222458,2561.5,2561.4,0.7673]
[1751958103411,0.72968209,2561.5,2561.4,4.67141493]
[1751958104217,0.72968209,2561.5,2561.4,0.7673]
[1751958104526,0.72968209,2561.5,2561.3,0.1952]
[1751958104712,0.72968209,2561.4,2561.3,6.1182]
[1751958105310,0.72968209,2561.4,2561.3,10.02246736]
[1751958105705,0.36391086,2561.4,2561.3,10.02246736]
[1751958105899,0.72973848,2561.4,2561.3,10.02246736]
[1751958106631,0.72973848,2561.4,2561.3,6.1182]
[1751958106912,0.72973848,2561.4,2561.3,5.923]
[1751958107292,1.0381814,2561.4,2561.1,0.1952]
[1751958107498,1.0381814,2561.4,2561.1,6.1182]
[1751958107499,0.72973848,2561.3,2561.1,6.1182]
[1751958107694,0.72973848,2561.2,2561.1,6.1182]
[1751958108198,0.72973848,2561.2,2561.1,5.923]
[1751958108515,0.72973848,2561.2,2561.1,3.90457225]
[1751958108718,0.72973848,2561.2,2561.0,9.82769039]
[1751958108719,0.72973848,2561.2,2561.0,3.90467817]
[1751958109021,0.72973848,2561.1,2561.0,3.90467817]
[1751958111541,0.72973848,2561.1,2561.0,4.68527817]
[1751958112038,0.72986473,2561.1,2561.0,3.90467817]
[1751958112842,0.72986473,2561.1,2561.0,6.30961262]
[1751958113027,0.1952,2561.4,2561.2,3.90440324]
[1751958113336,0.72984964,2561.3,2561.2,3.90440324]
[1751958114848,0.36595116,2561.3,2561.2,3.90440324]
[1751958115137,0.73156411,2561.3,2561.2,3.90440324]
[1751958118957,0.73156411,2561.3,2561.2,6.02533947]
[1751958120459,0.36595116,2561.3,2561.2,6.61438366]
[1751958120641,1.40532909,2561.8,2561.7,3.90351112]
[1751958120947,0.73160569,2561.8,2561.6,9.82670204]
[1751958121240,0.73160569,2561.7,2561.6,10.02110204]
[1751958122331,0.73160569,2561.7,2561.6,4.09810204]
[1751958122543,0.73149661,2561.7,2561.6,4.09810204]
[1751958123858,0.73149661,2561.7,2561.6,0.1944]
[1751958124221,0.73149661,2561.7,2561.6,4.09821011]
[1751958130994,0.73149661,2561.7,2561.6,4.85271011]
[1751958131991,0.73149661,2561.7,2561.6,4.09821011]
[1751958132677,0.36562207,2561.7,2561.6,4.09821011]
[1751958133180,1.60027151,2562.0,2561.6,4.09821011]
[1751958133404,1.33557602,2561.9,2561.7,3.90365403]
[1751958135488,1.33557602,2561.9,2561.6,4.09811993]
[1751958136866,1.33557602,2561.9,2561.7,3.90365364]
[1751958140594,1.33557602,2561.9,2561.6,4.09812179]
[1751958140969,1.33557602,2561.9,2561.6,0.1944]
[1751958141296,0.29358475,2561.8,2561.6,0.1944]
[1751958141705,1.09408475,2561.8,2561.5,0.001]
[1751958141902,0.1944,2561.7,2561.5,0.001]
[1751958142089,10.8005,2561.6,2561.5,0.001]
[1751958142281,22.64774533,2561.6,2561.5,0.001]
[1751958142682,26.70086633,2561.6,2561.5,0.001]
[1751958142902,3.90457225,2561.1,2561.0,0.001]
[1751958143101,17.81541849,2561.1,2561.0,0.001]
[1751958143302,23.67646385,2561.1,2561.0,0.001]
[1751958143480,13.49016293,2561.1,2561.0,0.001]
[1751958148310,20.08081336,2561.1,2561.0,0.001]
[1751958148514,14.219768,2561.1,2561.0,0.001]
[1751958152324,20.141768,2561.1,2561.0,0.001]
[1751958154332,14.219768,2561.1,2561.0,0.001]
[1751958154520,20.141768,2561.1,2561.0,0.001]
[1751958154900,20.14091567,2561.1,2561.0,0.001]
[1751958155299,14.21891567,2561.1,2561.0,0.001]
[1751958155510,20.14091567,2561.1,2561.0,0.001]
[1751958156500,14.21891567,2561.1,2561.0,0.001]
[1751958156828,12.81532876,2561.1,2561.0,0.001]
[1751958157023,16.84595274,2561.1,2561.0,0.001]
[1751958157225,10.92395274,2561.1,2561.0,0.001]
[1751958157801,0.1952,2561.1,2561.0,3.90572471]
[1751958158001,0.1952,2561.1,2561.0,0.001]
[1751958167845,7.67897473,2561.5,2561.0,4.70880935]
[1751958168039,10.1952,2561.3,2561.0,4.70880935]
[1751958168629,10.1952,2561.3,2561.1,3.90454651]
[1751958168933,10.1952,2561.3,2561.2,3.9044198]
[1751958168934,0.1952,2561.3,2561.2,3.9044198]
[1751958169141,0.002,2561.5,2561.2,4.09954604]
[1751958169305,1.40416608,2561.5,2561.3,3.90423502]
[1751958169713,1.40460617,2561.5,2561.3,3.90423502]
[1751958170005,1.40460617,2561.5,2561.4,3.90411493]
[1751958170208,0.002,2561.5,2561.4,3.90411493]
[1751958170809,0.002,2561.5,2561.3,4.71566447]
[1751958171845,0.002,2561.5,2561.2,10.02051005]
[1751958172046,0.002,2561.5,2561.3,3.90426049]
[1751958174350,0.002,2561.5,2561.2,10.02054694]
[1751958174660,0.002,2561.5,2561.2,6.1162]
[1751958174818,0.002,2561.5,2561.2,0.1952]
[1751958175019,1.43400062,2561.5,2561.1,9.82553968]
[1751958175242,2.83660679,2561.5,2561.1,5.921]
[1751958175746,2.83660679,2561.5,2561.1,9.82556989]
[1751958176147,2.83660679,2561.5,2561.0,4.1008596]
[1751958176345,2.64140679,2561.5,2561.0,0.001]
[1751958176554,0.1952,2561.2,2561.0,0.001]
[1751958177240,0.1952,2561.2,2561.0,3.90571851]
[1751958181761,0.1952,2561.2,2561.1,3.90457225]
[1751958182166,1.40460617,2561.5,2561.1,0.8257]
[1751958182464,0.002,2561.5,2561.3,3.90424639]
[1751958183365,0.002,2561.5,2561.1,1.0209]
[1751958183539,0.002,2561.5,2561.1,0.1952]
[1751958183742,0.1952,2561.2,2561.0,0.001]
[1751958188652,1.40398319,2561.1,2561.0,0.001]
[1751958189055,2.22338319,2561.1,2561.0,0.001]
[1751958189559,3.15896218,2561.2,2561.0,0.001]
[1751958189767,1.71987941,2561.1,2561.0,0.001]
[1751958189967,0.31589622,2561.1,2561.0,0.001]
[1751958192860,0.1952,2561.1,2561.0,0.001]
[1751958194193,0.1952,2561.1,2561.0,3.90572471]
[1751958194879,0.1952,2561.1,2561.0,0.001]
[1751958195179,0.1952,2561.1,2561.0,3.90572471]
[1751958196957,0.1952,2561.1,2561.0,0.001]
[1751958197270,0.1952,2561.1,2561.0,3.90572471]
[1751958197783,0.1952,2561.1,2561.0,0.001]
[1751958198483,0.1952,2561.1,2561.0,3.90572471]
[1751958198860,0.1952,2561.1,2561.0,0.001]
[1751958199064,0.1952,2561.1,2561.0,3.90572471]
[1751958200293,0.1952,2561.1,2561.0,0.001]
[1751958202597,1.59918319,2561.1,2561.0,0.001]
[1751958202774,2.98522156,2561.1,2561.0,0.001]
[1751958204071,3.71730292,2561.1,2561.0,0.001]
[1751958212300,3.7173984,2561.1,2561.0,0.001]
[1751958213903,2.33136003,2561.1,2561.0,0.001]
[1751958215118,2.33159259,2561.1,2561.0,0.001]
[1751958217214,2.33159259,2561.1,2561.0,3.90572471]
[1751958217396,2.33159259,2561.1,2561.0,0.001]
[1751958218418,2.13639259,2561.1,2561.0,3.90572471]
[1751958218829,2.13897579,2561.1,2561.0,3.90572471]
[1751958218992,0.7324094,2561.1,2561.0,3.90572471]
[1751958219190,2.13897579,2561.1,2561.0,3.90572471]
[1751958219626,0.7324094,2561.1,2561.0,3.90572471]
[1751958219833,2.13897579,2561.1,2561.0,3.90572471]
[1751958220289,0.7324094,2561.1,2561.0,3.90572471]
[1751958220491,2.13897579,2561.1,2561.0,4.73612471]
[1751958220799,0.7324094,2561.1,2561.0,4.73612471]
[1751958221003,2.13897579,2561.1,2561.0,4.73612471]
[1751958221384,0.7324094,2561.1,2561.0,5.61983698]
[1751958221718,0.7324094,2561.1,2561.0,5.81503698]
[1751958221884,0.7324094,2561.1,2561.0,4.93132471]
[1751958222394,0.7324094,2561.1,2561.0,4.97037195]
[1751958222802,0.7324094,2561.1,2561.0,10.83141731]
[1751958223094,0.7324094,2561.1,2561.0,10.79237007]
[1751958224186,0.36627324,2561.1,2561.0,10.79237007]
[1751958224386,0.002,2561.5,2561.2,0.7573]
[1751958224585,0.73192412,2561.4,2561.3,3.90426736]
[1751958226723,0.73176134,2561.4,2561.3,3.90426736]
[1751958228414,0.73148562,2561.4,2561.3,3.90426736]
[1751958229792,0.73127934,2561.4,2561.3,3.90426736]
[1751958238438,0.73127934,2561.4,2561.2,6.1132]
[1751958238613,0.73127934,2561.3,2561.2,10.01749957]
[1751958240826,0.36563967,2561.3,2561.2,10.01749957]
[1751958241141,0.002,2561.5,2561.3,3.90426736]
[1751958241346,0.73128106,2561.4,2561.3,3.90426736]
[1751958241751,0.73128106,2561.4,2561.1,3.90448469]
[1751958241934,0.73128106,2561.3,2561.1,4.09968469]
[1751958242255,0.7313263,2561.2,2561.1,4.09968469]
[1751958242653,0.7313263,2561.2,2561.0,0.001]
[1751958242852,0.7313263,2561.1,2561.0,9.82172471]
[1751958244617,2.18787988,2561.5,2561.2,3.90440159]
[1751958244817,2.54194641,2561.4,2561.2,9.82040159]
[1751958245054,0.73155842,2561.3,2561.2,9.82040159]
[1751958245216,0.73155842,2561.3,2561.2,5.916]
[1751958245633,0.73155842,2561.3,2561.2,9.8204198]
[1751958247137,0.73155842,2561.3,2561.2,3.9044198]
[1751958247337,0.73155842,2561.3,2561.1,9.82048664]
[1751958247537,0.73155842,2561.2,2561.1,9.82048664]
[1751958248440,0.73155842,2561.2,2561.1,9.82148664]
[1751958249061,0.36577921,2561.2,2561.1,9.82148664]
[1751958249466,2.38333673,2561.5,2561.1,9.82148664]
[1751958249961,1.40463673,2561.4,2561.1,0.001]
[1751958250146,0.1952,2561.2,2561.1,0.001]
[1751958250561,0.1952,2561.2,2561.1,3.90557225]
[1751958250763,0.1952,2561.2,2561.1,0.001]
[1751958254161,0.1952,2561.2,2561.1,3.90557225]
[1751958254662,0.1952,2561.2,2561.1,0.001]
[1751958257160,0.1952,2561.2,2561.1,3.90557225]
[1751958257746,1.60183673,2561.5,2561.3,3.9042553]
[1751958258147,1.60183673,2561.5,2561.2,9.8203511]
[1751958259535,0.36606586,2561.4,2561.2,9.8203511]
[1751958259737,0.36606586,2561.3,2561.2,9.8203511]
[1751958259981,0.73213183,2561.3,2561.2,3.9043511]
[1751958260280,0.73213183,2561.3,2561.1,6.749]
[1751958260437,0.73213183,2561.2,2561.1,9.82153209]
[1751958261276,0.73213183,2561.2,2561.1,11.29049425]
[1751958261453,0.73213183,2561.2,2561.1,12.10109425]
[1751958266384,0.73213183,2561.2,2561.1,12.29629425]
[1751958267562,0.73168749,2561.2,2561.1,12.29629425]
[1751958271788,0.36606586,2561.2,2561.1,12.29629425]
[1751958275003,0.72984868,2561.2,2561.1,12.29629425]
[1751958275310,0.36606586,2561.2,2561.1,12.29629425]
[1751958275866,0.72985253,2561.2,2561.1,12.29629425]
[1751958276274,0.72984722,2561.2,2561.1,5.915]
[1751958277017,0.72984722,2561.2,2561.1,0.001]
[1751958277195,0.72984722,2561.2,2561.1,5.915]
[1751958278729,0.72984722,2561.2,2561.1,0.001]
[1751958282188,0.36378136,2561.2,2561.1,0.001]
[1751958282389,1.0218,2561.3,2561.1,0.001]
[1751958282589,3.8228854,2561.3,2561.1,0.001]
[1751958282889,1.40587464,2561.2,2561.1,0.001]
[1751958285291,1.7707155,2561.2,2561.1,0.001]
[1751958285724,1.77071551,2561.2,2561.1,0.001]
[1751958286023,2.13682423,2561.2,2561.1,0.001]
[1751958286943,2.98262118,2561.2,2561.1,0.001]
[1751958288327,2.13682423,2561.2,2561.1,0.001]
[1751958288793,0.73094959,2561.2,2561.1,0.001]
[1751958288994,2.13682423,2561.2,2561.1,0.001]
[1751958289194,0.73094959,2561.2,2561.1,0.001]
[1751958290917,0.92614959,2561.2,2561.1,0.001]
[1751958291117,3.60445617,2561.2,2561.1,0.001]
[1751958291616,3.60520028,2561.2,2561.1,0.001]
[1751958292128,7.50962008,2561.2,2561.1,0.001]
[1751958293230,8.26202008,2561.2,2561.1,0.001]
[1751958293797,14.12306544,2561.2,2561.1,0.001]
[1751958294020,15.88033708,2561.2,2561.1,0.001]
[1751958294423,25.88044382,2561.2,2561.1,0.001]
[1751958294599,26.46447182,2561.2,2561.1,0.001]
[1751958295205,26.4643486,2561.2,2561.1,0.001]
[1751958296734,24.12304896,2561.2,2561.1,0.001]
[1751958297534,24.1227207,2561.2,2561.1,0.001]
[1751958297835,14.71477225,2561.1,2561.0,0.001]
[1751958298032,27.31319249,2561.1,2561.0,0.001]
[1751958298231,23.80124303,2561.1,2561.0,0.001]
[1751958299337,27.80124303,2561.1,2561.0,0.001]
[1751958300132,27.80124303,2561.1,2561.0,1e-08]
[1751958300133,31.86319249,2561.1,2561.0,1e-08]
[1751958300309,15.26872471,2561.0,2560.9,0.001]
[1751958300510,15.26872471,2561.0,2560.5,0.001]
[1751958300511,20.58038004,2560.6,2560.5,0.001]
[1751958300839,28.63134206,2560.6,2560.5,0.001]
[1751958301206,22.7702967,2560.6,2560.5,0.001]
[1751958301409,24.52393666,2560.6,2560.5,0.001]
[1751958301610,22.7702967,2560.6,2560.5,0.001]
[1751958301826,23.80554388,2560.6,2560.5,0.001]
[1751958302159,19.9002092,2560.6,2560.5,0.001]
[1751958303022,23.80554388,2560.6,2560.5,0.001]
[1751958304754,19.9002092,2560.6,2560.5,0.001]
[1751958305728,13.9862092,2560.6,2560.5,0.001]
[1751958306035,18.24616202,2560.6,2560.5,0.001]
[1751958306437,18.24088759,2560.6,2560.5,0.001]
[1751958306628,10.92628738,2560.6,2560.5,0.001]
[1751958308026,10.9252121,2560.6,2560.5,0.001]
[1751958310432,12.32588019,2560.6,2560.5,0.001]
[1751958311972,10.9252121,2560.6,2560.5,0.001]
[1751958312463,12.32607106,2560.6,2560.5,0.001]
[1751958318099,12.32726417,2560.6,2560.5,0.001]
[1751958322702,12.32833128,2560.6,2560.5,0.001]
[1751958334411,12.32939103,2560.6,2560.5,0.001]
[1751958335220,14.08195612,2560.6,2560.5,0.001]
[1751958335718,13.66798065,2560.6,2560.5,0.001]
[1751958339421,24.83352032,2560.6,2560.5,0.001]
[1751958339626,4.67499228,2560.3,2560.2,0.0436927]
[1751958339793,30.92823256,2560.3,2560.2,0.0436927]
[1751958340731,32.08956575,2560.3,2560.2,0.0436927]
[1751958341226,28.58222867,2560.3,2560.2,0.0436927]
[1751958341808,32.58222867,2560.3,2560.2,0.0436927]
[1751958342224,31.01815791,2560.3,2560.2,0.0436927]
[1751958342418,34.92395019,2560.3,2560.2,0.0436927]
[1751958345205,32.58222867,2560.3,2560.2,0.0436927]
[1751958345621,34.92395019,2560.3,2560.2,0.0436927]
[1751958346301,32.58222867,2560.3,2560.2,0.0436927]
[1751958348006,34.92395019,2560.3,2560.2,0.0436927]
[1751958348306,32.58222867,2560.3,2560.2,0.0436927]
[1751958354635,28.58222867,2560.3,2560.2,0.0436927]
[1751958355269,28.58116973,2560.3,2560.2,0.0436927]
[1751958357160,30.92289125,2560.3,2560.2,0.0436927]
[1751958357467,30.55758006,2560.3,2560.2,0.0436927]
[1751958357674,34.92290728,2560.3,2560.2,0.0436927]
[1751958364145,32.58118576,2560.3,2560.2,0.0436927]
[1751958365960,32.58158108,2560.3,2560.2,0.0436927]
[1751958367178,36.08891816,2560.3,2560.2,0.0436927]
[1751958369178,32.58158108,2560.3,2560.2,0.0436927]
[1751958369375,13.90594484,2560.2,2560.1,0.001]
[1751958369596,29.66563678,2560.2,2560.1,0.001]
[1751958370465,29.86159055,2560.2,2560.1,0.001]
[1751958370860,20.23468828,2560.2,2560.1,0.001]
[1751958371106,26.14668828,2560.2,2560.1,0.001]
[1751958372384,22.14668828,2560.2,2560.1,0.001]
[1751958374290,22.14750721,2560.2,2560.1,0.001]
[1751958374991,22.14752499,2560.2,2560.1,0.001]
[1751958375290,26.14752499,2560.2,2560.1,0.001]
[1751958375492,13.90609741,2560.1,2560.0,0.001]
[1751958375672,28.61742292,2560.1,2560.0,0.001]
[1751958376098,4.69913493,2559.9,2559.7,0.0426927]
[1751958376272,30.0436807,2559.8,2559.7,0.0426927]
[1751958376466,29.67791187,2559.8,2559.7,0.0426927]
[1751958376780,29.31135262,2559.8,2559.7,0.0426927]
[1751958376997,29.46795062,2559.8,2559.7,0.0426927]
[1751958377308,34.31128129,2559.8,2559.7,0.0426927]
[1751958378014,34.67772721,2559.8,2559.7,0.0426927]
[1751958378186,34.67772762,2559.8,2559.7,0.0426927]
[1751958378386,34.31128129,2559.8,2559.7,0.0426927]
[1751958378709,34.6777234,2559.8,2559.7,0.0426927]
[1751958378922,34.31128129,2559.8,2559.7,0.0426927]
[1751958379294,35.04416473,2559.8,2559.7,0.0426927]
[1751958379921,26.96228129,2559.8,2559.7,0.0426927]
[1751958380213,35.04348997,2559.8,2559.7,0.0426927]
[1751958383622,31.04348997,2559.8,2559.7,0.0426927]
[1751958384426,31.04348997,2559.8,2559.5,0.001]
[1751958384427,3.90686044,2559.6,2559.5,0.001]
[1751958384600,33.72716655,2559.6,2559.5,0.001]
[1751958384794,33.72657808,2559.6,2559.5,0.001]
[1751958385931,33.72650154,2559.6,2559.5,0.001]
[1751958386493,37.72650154,2559.6,2559.5,0.001]
[1751958387192,40.06442406,2559.6,2559.5,0.001]
[1751958387591,40.06431471,2559.6,2559.5,0.001]
[1751958387820,40.06501615,2559.6,2559.5,0.001]
[1751958388221,41.50201615,2559.6,2559.5,0.001]
[1751958388717,41.13591201,2559.6,2559.5,0.001]
[1751958389025,41.50120448,2559.6,2559.5,0.001]
[1751958389195,42.27940448,2559.6,2559.5,0.001]
[1751958389402,39.94148196,2559.6,2559.5,0.001]
[1751958391202,42.27920199,2559.6,2559.5,0.001]
[1751958391416,39.94148196,2559.6,2559.5,0.001]
[1751958394450,35.94148196,2559.6,2559.5,0.001]
[1751958394750,34.50448196,2559.6,2559.5,0.001]
[1751958394925,35.94048196,2559.6,2559.5,0.001]
[1751958397138,15.41751308,2559.5,2559.4,0.001]
[1751958397360,15.41751308,2559.5,2558.7,0.8026927]
[1751958397361,3.9073184,2559.3,2558.7,0.8026927]
[1751958397566,37.99935214,2559.3,2558.7,0.8026927]
[1751958398463,41.99935214,2559.3,2558.7,0.8026927]
[1751958402693,40.47726105,2559.3,2559.2,1e-08]
[1751958402841,40.47726105,2559.3,2558.7,0.0426927]
[1751958402842,13.90808191,2558.8,2558.7,0.0426927]
[1751958403041,33.72672456,2558.8,2558.7,0.0426927]
[1751958403340,36.06737059,2558.8,2558.7,0.0426927]
[1751958403543,33.72691786,2558.8,2558.7,0.0426927]
[1751958403768,37.23750994,2558.8,2558.7,0.0426927]
[1751958405082,41.23750994,2558.8,2558.7,0.0426927]
[1751958406261,41.23750994,2558.8,2558.2,0.0426927]
[1751958406262,3.90884571,2558.3,2558.2,0.0426927]
[1751958406607,33.72768166,2558.3,2558.2,0.0426927]
[1751958407106,36.0679343,2558.3,2558.2,0.0426927]
[1751958410014,36.35466489,2558.3,2558.2,0.0426927]
[1751958411281,38.01441225,2558.3,2558.2,0.0426927]
[1751958412097,38.01372559,2558.3,2558.2,0.0426927]